Cogmind - Beta 16.1 @@@ ROGUE MODE // 2026.03.31 @ 18:46:53 Player: Gatamar Result: Destroyed by 22-JEX(R) with Subdweller Laser Performance ------------- Evolutions (0) 0 Regions Visited (2) 400 Robots Destroyed (23) 115 Value Destroyed (471) 471 Prototype IDs (2) 40 Alien Tech Used (0) 0 Bonus (0) 0 TOTAL SCORE: 1026 Bonus ------- None Cogmind --------- Core Integrity 0/250 Matter 295/300 Energy 95/100 System Corruption 0% Temperature Cool (6) Movement Rolling (140) Ox4 Location -10/Subcaves Parts ------- > --- POWER (1) -------- (None) > --- PROPULSION (2) --- Wheel > --- UTILITY (2) ------ High-capacity Storage Unit > --- WEAPON (2) ------- Makeshift Sword > --- INVENTORY (20) --- Compact Wheel Compact Wheel Medium Storage Unit High-capacity Matter Pod (200) High-capacity Matter Pod (62) ECM Suite EM Pulse Gun Subdweller Beam Cannon Assault Rifle Assault Rifle Battle Cannon Multitool Makeshift Sword Peak State ------------ > --- POWER ------------ Subdweller Power Source > --- PROPULSION ------- Subdweller Monowheel Subdweller Monowheel > --- UTILITY ---------- High-capacity Storage Unit Seismic Detector > --- WEAPON ----------- Subdweller Beam Cannon Makeshift Sword > --- INVENTORY -------- Light Ion Engine Light Ion Engine Wheel Wheel Wheel Compact Wheel Compact Wheel Subdweller Monowheel Medium Storage Unit High-capacity Matter Pod High-capacity Matter Pod ECM Suite EM Pulse Gun Assault Rifle Assault Rifle Battle Cannon Multitool [Rating: 16] Favorites ----------- Power Light Ion Engine Engine Light Ion Engine Propulsion Light Treads Treads Light Treads Wheel Subdweller Monowheel Utility Seismic Detector Device Seismic Detector Storage High-capacity Storage Unit Weapon Assault Rifle Energy Cannon Subdweller Beam Cannon Ballistic Gun Assault Rifle Ballistic Cannon Battle Cannon Slashing Weapon Makeshift Sword Build | -11 -10 -10 ------- Run | Yrd Mat Sub Slots Evolved . | . . . Power . | . . . Propulsion . | . . . Utility . | . . . Weapon . | . . . Parts Attached 21 | 7 3 11 Power 4 | 1 1 2 Engine 4 | 1 1 2 Core . | . . . Reactor . | . . . Propulsion 8 | 2 . 6 Treads 2 | 2 . . Leg . | . . . Wheel 6 | . . 6 Hover . | . . . Flight . | . . . Utility 4 | 2 2 . Device 1 | 1 . . Storage 3 | 1 2 . Processor . | . . . Hackware . | . . . Protection . | . . . Artifact . | . . . Weapon 5 | 2 . 3 Energy Gun . | . . . Energy Cannon 1 | . . 1 Ballistic Gun 2 | 2 . . Ballistic Cannon 1 | . . 1 Launcher . | . . . Special Weapon . | . . . Impact Weapon . | . . . Slashing Weapon 1 | . . 1 Piercing Weapon . | . . . Special Melee Weapon . | . . . Unidentified Prototypes . | . . . Parts Lost 10 | . . 10 Power 2 | . . 2 Propulsion 5 | . . 5 Utility 1 | . . 1 Weapon 2 | . . 2 Highest Loss Streak 4 | . . 4 To Critical Strikes . | . . . Average Backups 11 | 2 7 14 Power 1 | 1 1 1 Propulsion 3 | 1 3 4 Utility 3 | . 2 4 Weapon 2 | . 1 4 Tool/Special . | . . . Unused Backups 12 | 1 1 10 Power 1 | . 1 . Propulsion 3 | 1 . 2 Utility 3 | . . 3 Weapon 4 | . . 4 Tool/Special 1 | . . 1 Average Slot Usage (%) 98 | . 100 97 Engine 13 | . 14 13 Treads 17 | . 28 10 Wheel 9 | . . 16 Device 13 | . 14 13 Storage 14 | . 14 14 Ballistic Gun 14 | . 28 5 Ballistic Cannon 4 | . . 7 Slashing Weapon 8 | . . 13 Peak Build Rating 16 | 7 8 16 Average Rating 10 | 5 7 13 On Entrance 5 | . 7 8 Avg Prop Armor Cover (%) 5 | . . 5 Naked Turns . | . . . Heaviest Build 56 | 15 50 56 Greatest Support 40 | 40 40 40 Greatest Overweight (x) 4 | 1 1 4 Average Overweight (x) . | . . 1 Largest Inventory Capacity 20 | 8 20 20 Average Capacity 16 | 7 11 20 Most Carried 18 | 5 11 18 Average Carried 11 | 2 7 14 Final Capacity 20 | 8 20 20 Final Carried 13 | 5 10 13 Class Distribution -------------------- 88% | Mutant 11% | Scavenger-Mutant Dominant Class ---------------- Mutant | -10/Materials Mutant | -10/Subcaves Resources | -11 -10 -10 ----------- Run | Yrd Mat Sub Matter Collected 1196 | 250 512 434 Remotely . | . . . Salvage Created 798 | 102 526 170 Parts 43 | 5 24 14 Haulers Intercepted 2 | . 2 . Recyclers Shooed 5 | . 5 . Parts Field Recycled . | . . . Retrieved Matter . | . . . Parts Self-Destructed 8 | . . 8 Prevented . | . . . Parts Restored . | . . . Kills | -11 -10 -10 ------- Run | Yrd Mat Sub Combat Hostiles Destroyed 16 | . 8 8 Melee 3 | . . 3 Guns 8 | . 8 . Cannons 5 | . . 5 Classes Destroyed 7 | 2 4 1 Tunneler 1 | 1 . . Hauler 2 | . 2 . Recycler 3 | 1 2 . Watcher 1 | . 1 . Swarmer 7 | . 3 4 Grunt 5 | . 5 . Subdweller 4 | . . 4 Best Kill Streak 4 | 1 3 4 Combat Bots Only 4 | . 2 4 Max Kills in Single Turn 1 | 1 1 1 Gunslinging . | . . . Exploded . | . . . Melee 1 | . . 1 Uniques/NPCs Destroyed . | . . . Combat | -11 -10 -10 -------- Run | Yrd Mat Sub Hostile Shots Fired 132 | . 51 81 Missed 34 | . 13 21 Hits 98 | . 38 60 Projectile 98 | . 38 60 Critical Strikes 1 | . 1 . Damage Taken 1295 | . 455 840 Core 257 | . 51 206 Absorbed by Shields . | . . . Core Remaining (%) 100 | 100 . . Volleys Fired 73 | 5 57 11 Largest 2 | 2 2 1 Hottest 40 | 40 40 33 Shots Fired 135 | 10 114 11 Gun 124 | 10 114 . Cannon 11 | . . 11 Launcher . | . . . Special . | . . . Kinetic 135 | 10 114 11 Thermal . | . . . Explosive . | . . . Electromagnetic . | . . . Robot Hit Streak 11 | 3 11 7 Robot Miss Streak 5 | 2 5 1 Penetration Max . | . . . Secondary Targets 1 | . 1 . Max Gunslinging Chain 1 | . 1 . Shots Hit Robots 101 | 6 69 26 Core Hits 39 | 3 28 8 Critical Kills . | . . . Critical Parts Destroyed 2 | . 2 . Critical Strikes 2 | . 2 . Destroy 2 | . 2 . Melee Attacks 33 | . . 33 Impact . | . . . Slashing 33 | . . 33 Piercing . | . . . Sneak Attacks 1 | . . 1 Combat Hostiles 1 | . . 1 Follow-up Attacks . | . . . Damage Inflicted 1821 | 72 888 861 Guns 945 | 72 873 . Cannons 213 | . . 213 Explosions . | . . . Melee 648 | . . 648 Ramming 15 | . 15 . Kinetic 1158 | 72 873 213 Thermal . | . . . Explosive . | . . . Electromagnetic . | . . . Impact . | . . . Slashing 648 | . . 648 Piercing . | . . . Highest Corruption . | . . . Average Corruption . | . . . Corruption Purged . | . . . Corruption Blocked . | . . . Overload Shots . | . . . Overflow Damage 10 | . . 10 Projectiles 10 | . . 10 Explosions . | . . . Melee . | . . . Knockbacks 4 | . . 4 Impact . | . . . Kinetic 4 | . . 4 Secondary . | . . . Self-Inflicted Damage . | . . . Shots . | . . . Rammed 5 | . 5 . Targets Rammed 5 | . 5 . Kicked . | . . . Crushed . | . . . Highest Temperature 27 | . 27 . Average Temperature 10 | . 10 . Received Heat Transfer 417 | . 252 165 Siege Activations . | . . . Martial Activations . | . . . Shielding Activations . | . . . Robots Disrupted . | . . . Combat Hostiles . | . . . Robots Corrupted . | . . . Combat Hostiles . | . . . Parts Fried . | . . . Impact Corruptions . | . . . Robots Melted . | . . . Combat Hostiles . | . . . Parts Melted 1 | . . 1 Heat Transferred . | . . . Parts Sabotaged . | . . . Parts Stolen . | . . . Parts Stripped . | . . . Power Chain Reactions . | . . . Alert | -11 -10 -10 ------- Run | Yrd Mat Sub Maximum Alert Level . | . . . Low Security (%) 100 | 100 100 . Level 1 . | . . . Level 2 . | . . . Level 3 . | . . . Level 4 . | . . . Level 5 . | . . . High Security . | . . . Max Security . | . . . Peak Influence 50 | 5 50 . Initial . | . . . Average 9 | . 9 . Influence Increases 411 | 10 231 170 Destroy 0b10 Robot/C 240 | . 160 80 Destroy 0b10 Robot/NC 35 | 10 25 . Destroy Leader 36 | . 36 . Successful Hack 8 | . 8 . Destroy Structure 2 | . 2 . Lose Combat Pursuer 90 | . . 90 Influence Decreases 342 | 10 231 101 Time Decay 272 | 10 231 31 Lost Part 70 | . . 70 Squads Dispatched . | . . . Investigation . | . . . Extermination . | . . . Reinforcement . | . . . Assault . | . . . Garrison . | . . . Intercept . | . . . Searches Triggered . | . . . Construction Impeded . | . . . Haulers Reinforced . | . . . Active Scanning Responses . | . . . Cargo Convoy Interrupts . | . . . Stealth | -11 -10 -10 --------- Run | Yrd Mat Sub Distress Signals 3 | . 3 . Communications Jammed . | . . . Distress Signals . | . . . Times Spotted 37 | . 26 11 Peak Tracking Total 6 | . 3 6 Tactical Retreats 2 | . . 2 Traps | -11 -10 -10 ------- Run | Yrd Mat Sub Traps Triggered . | . . . Indirectly . | . . . Trap Hack Attempts . | . . . Triggered . | . . . Disarmed . | . . . Reprogrammed . | . . . Reused . | . . . Traps Extracted . | . . . Installed . | . . . Triggered . | . . . Machines | -11 -10 -10 ---------- Run | Yrd Mat Sub Machines Disabled . | . . . Max in Single Turn . | . . . Machines Repaired . | . . . Machines Dismantled . | . . . Machines Sabotaged . | . . . Overloaded Fab Kills . | . . . Hacking | -11 -10 -10 --------- Run | Yrd Mat Sub Machines Accessed 4 | . 3 1 Terminals 3 | . 3 . Fabricators . | . . . Repair Stations . | . . . Recycling Units . | . . . Scanalyzers . | . . . Garrison Access . | . . . Total Hacks 14 | . 11 3 Successful 6 | . 3 3 Failed 8 | . 8 . Catastrophic 1 | . 1 . Database Lockouts . | . . . Manual 1 | . 1 . Terminals 11 | . 11 . Fabricators . | . . . Repair Stations . | . . . Recycling Units . | . . . Scanalyzers . | . . . Garrison Access . | . . . Terminal Hacks 6 | . 3 3 Record 3 | . . 3 Prototype ID Bank 1 | . 1 . Maintenance Status 1 | . 1 . Hauler Manifests 1 | . 1 . Fabricator Hacks . | . . . Repair Station Hacks . | . . . Recycling Unit Hacks . | . . . Scanalyzer . | . . . Garrison Access Hacks . | . . . Unauthorized Hacks . | . . . Terminals . | . . . Fabricators . | . . . Repair Stations . | . . . Recycling Units . | . . . Scanalyzers . | . . . Garrison Access . | . . . Data Cores Recovered . | . . . Used . | . . . Hacking Detections 3 | . 3 . Full Trace Events . | . . . Feedback Events . | . . . Feedback Blocked . | . . . Robot Schematics Acquired . | . . . Robots Built . | . . . Authchips . | . . . Time . | . . . Total Robot Build Rating . | . . . Part Schematics Acquired . | . . . Parts Built . | . . . Authchips . | . . . Time . | . . . Total Part Build Rating . | . . . Part Studies Acquired . | . . . Parts Repaired . | . . . Time . | . . . Parts Recycled . | . . . Recycled Matter . | . . . Retrieved Matter . | . . . Retrieved Components . | . . . Parts Scanalyzed . | . . . Part Schematics Acquired . | . . . Parts Damaged . | . . . Bothacking | -11 -10 -10 ------------ Run | Yrd Mat Sub Used RIF Installer . | . . . Robots Hacked . | . . . Non-combat . | . . . Combat . | . . . Robot Hacks Applied . | . . . Relay Couplers Released . | . . . Fabnet Peak Effective % . | . . . Robots Rewired . | . . . Allies Hacked . | . . . Hacks Repelled . | . . . Allies | -11 -10 -10 -------- Run | Yrd Mat Sub Total Allies . | . . . Largest Group . | . . . Highest-Rated Group . | . . . Highest-Rated Ally . | . . . Total Orders . | . . . Ally Attacks . | . . . Total Damage . | . . . Kills . | . . . Allies Corrupted . | . . . Allies Melted . | . . . Intel | -11 -10 -10 ------- Run | Yrd Mat Sub Active Infowar (turns) 2974 | 16 1217 1741 Seismic 2974 | 16 1217 1741 Robot Analysis Total . | . . . Derelict Logs Recovered 1 | . . 1 Drone Launches . | . . . Drone Recoveries . | . . . Exploration | -11 -10 -10 ------------- Run | Yrd Mat Sub Turns Passed 3100 | 121 1217 1762 Spaces Moved 1656 | 61 534 1061 Core 8 | 8 . . Treads 853 | 53 534 266 Legs . | . . . Wheels 795 | . . 795 Hover . | . . . Flight . | . . . Fastest Speed 50 | 50 160 110 Average Speed 158 | 148 177 150 Slowest Speed 320 | 160 240 320 Overloaded Moves . | . . . Propulsion Burnouts . | . . . Robots Hopped . | . . . Potential Cave-ins . | . . . Cave-ins Triggered . | . . . Exploration Rate (%) 40 | 4 54 62 Regions Visited 2 Branch Regions 1 Pre-discovered Areas 1 | . . 1 Known Exits Taken . | . . . Unknown Exits Taken 2 | 1 1 . Scrap Searched 1 | . . 1 Spaces Dug 2 | . . 2 Terrain Destroyed 2 | . . 2 Melee 2 | . . 2 Projectile . | . . . AOE . | . . . Terrain Rammed . | . . . Walls Destroyed . | . . . Machines Disabled . | . . . Actions | -11 -10 -10 --------- Run | Yrd Mat Sub Total 1953 | 79 688 1186 Wait 138 | . 82 56 Move 1654 | 60 533 1061 Hop . | . . . Pick Up 20 | 6 5 9 Fast Attach 10 | 7 . 3 Attach 6 | . . 6 Detach . | . . . Swap 6 | . 3 3 Drop 8 | 1 3 4 Fire 73 | 5 57 11 Melee 33 | . . 33 Ram . | . . . Kick . | . . . Crush 5 | . 5 . Escape Stasis . | . . . Rewire . | . . . Trap . | . . . Miscellaneous . | . . . Route ------- -11/Scrapyard -10/Materials (discovered 3 exits: [*Mat x2] / *Sub) -10/Subcaves (discovered 2 exits: [*Mat x2]) History --------- Turn | Location | Event 5 | -11/Scrapyard | Discovered new exit (range 16) 122 | -11/Scrapyard | Entered Materials 317 | -10/Materials | Build established: Mutant 415 | -10/Materials | Discovered new exit (range 9) 559 | -10/Materials | Discovered new exit (range 8) 1327 | -10/Materials | Discovered new exit (range 6) 1339 | -10/Materials | Entered Subcaves 1340 | -10/Subcaves | Approached by a straggling Scientist 1430 | -10/Subcaves | A swath of the cavern ceiling suddenly collapsed 1477 | -10/Subcaves | Learned Materials machine intel 1479 | -10/Subcaves | Discovered new exit (range 15) 1883 | -10/Subcaves | Visited Clippyterm 1890 | -10/Subcaves | Learned 40 Factory zone layouts 2033 | -10/Subcaves | Lost 3 parts (2n1w) 2262 | -10/Subcaves | Learned location of Zion (-6) 2262 | -10/Subcaves | Met a Zionite searching for "candidates" 2323 | -10/Subcaves | Build established: Scavenger-Mutant 2487 | -10/Subcaves | Discovered new exit (range 10) 2668 | -10/Subcaves | Build established: Mutant 2916 | -10/Subcaves | Core integrity fell below 50% 3048 | -10/Subcaves | A swath of the cavern ceiling suddenly collapsed 3095 | -10/Subcaves | Core integrity fell below 20% 3101 | -10/Subcaves | Destroyed by 22-JEX(R) with Subdweller Laser Last Messages --------------- 02945_ Subatomizers dissect the Lgt. Ion Engine. 02949_ Lgt. Ion Engine fries itself beyond repair. 02975_ Dropped Sub. Monowheel. 02976_ Dropped Hcp. Matter Pod. 02977_ Extracted 158 matter. 02978_ Acquired Hcp. Matter Pod. 02980_ Subatomizers dissect the Sub. Monowheel. 03017_ Subatomizers dissect the Sub. Monowheel, destroying it. 03042_ Lgt. Ion Engine destroyed. A swath of the cavern ceiling suddenly collapses. 03078_ Battle Cannon destroyed. 03080_ Seismic Detector destroyed. 03082_ Wheel destroyed. 03083_ T6-V86(R) destroyed. 03087_ Wheel destroyed. 03088_ Subatomizers dissect the Sub. Monowheel. Map ----- +----------------------------------------------------+ | | | | | | | | | | | ?????????????????????????????????????????????????? | | ?????????????????????????????????????????????????? | | ?????????????????????????????????????????????????? | | ?????????????????????????????????????????????????? | | ?????????????????????????????????????????????????? | | ?????????????????????????????????????????????????? | | ?????????????????????????????????????????????????? | | ?????????????????????????????????????????????????? | | ?????????????????????????????????????????????????? | | ?????????????????????????????????????????????????? | | ?????????????????????????????????????????????????? | | ?????????????????????????????????????????????????? | | ?????????????????????????????????????????????????? | | ?????????????????????????????????????????????????? | | ??????????????????????????##?????????????????????? | | ????????????????########## ######????##??????????? | | ???????????????## ### #??????????? | | ?????????? ##### #??????????? | | ????????? ??????????????? | | ????????? R #?????????????????? | | ?????????? @ #????????????????????? | | ?????????????????## ##???????????????????? | | ??????????????????# ##??????????????????? | | ??????????????????# ##?????????????????? | | ?????????????????## !%= ###???????????????? | | ?????????????????# #???????????????? | | ?????????????????## ### ##??????????????? | | ??????????????????###### #??????????????? | | ??????????????????###"" ### #??????????????? | | ?????????????????####### ##? ????????????? | | ???????????????### #"#";; ##? ????????????? | | ???##??????????# #"###; #?? ????????????? | | ??# ##??????????# #""#;# #?? ##?????????????? | | ## #??????????# #"";" #??????????????????? | | # #####??????# ##"#"; ##?????????????????? | | ## ####??# ## ##### #?????????????????? | | ###?# ##???# # ## #????????????????? | | ##????# #???##"## ## #?????????????? | | ##?????# #???#""#??? #? ?????????????? | | #?????# #???#" ##? ?#?? ????????????? | | #??????# #??## ## ???? ???????????? | | ##??????# #### # #???# ????????????? | | ##??????# " #????# ????????????? | | ##?????# #?????# ??????????????? | | ##????## ##?????????????????????? | +----------------------------------------------------+ Best States ------------- Heat Dissipation 25 Energy Generation 15 Energy Capacity 250 Matter Stores 300 Matter Capacity 300 Sight Range 16 Terrain Scan Density 10 Evasion (%) 40 Recoil Reduction 2 Item Schematics ----------------- None Robot Schematics ------------------ None Fabricated ------------ Nothing Repaired ---------- Nothing Studied --------- None Alien Tech Used ----------------- None Achievements -------------- None Challenges ------------ None Game ------ Seed NetworkedGatlingDerivative Manual? 0 Play Time 00:15:22 Cumulative 31.2 hours Start 2026.03.31 @ 18:32:35 End 2026.03.31 @ 18:46:53 Sessions 1 Manual Loads 0 Difficulty Rogue Special Mode None Game No. 81 Rogue 81 Adventurer 0 Explorer 0 Win Type - Total 0 Types 0/0/0/0/0/0/0/0/0/0 Lore% 27 Gallery% 28 Achievement% 21 Wizard Run 0 Options --------- Layout 2 ASCII 0 Keyboard 0 Movement Numpad Keybinds 0 Fullscreen 1 Font 32/SmallcapsGlow Map View 50x44 Zoom Use 0% Tactical HUD 1 Map Filters NONE Filters NONE Steam 1 RUN: c665a820-47ec-4e7c-905c-0d6f461eefd5